fUSD/lending_fUSD_20240419
["ID","MTS","AMOUNT","RATE_DAILY","PERIOD"]
[322933851,1713529855681,-500.0,0.00015793,2]
[322933852,1713529855696,-500.0,0.00015793,2]
[322933853,1713529855712,-3705.09,0.00015793,2]
[322933854,1713529855726,-500.0,0.00015793,2]
[322933855,1713529855741,-500.0,0.00015793,2]
[322933856,1713529855755,-500.0,0.00015793,2]
[322933857,1713529855770,-1229.28,0.00015793,2]
[322933858,1713529855784,-500.0,0.00015793,2]
[322933859,1713529855797,-1739.72,0.00015793,2]
[322933860,1713529855811,-500.0,0.00015793,2]
[322933861,1713529855826,-858.8,0.00015793,2]
[322933862,1713529855839,-500.0,0.00015793,2]
[322933863,1713529855854,-1327.08,0.00015793,2]
[322933864,1713529855869,-500.0,0.00015793,2]
[322933865,1713529855884,-500.0,0.00015793,2]
[322933866,1713529855899,-500.0,0.00015793,2]
[322933867,1713529855913,-500.0,0.00015793,2]
[322933868,1713529855928,-1840.67,0.00015793,2]
[322933869,1713529855944,-1028.11,0.00015793,2]
[322933870,1713529855961,-500.0,0.00015793,2]
[322933871,1713529855986,-500.0,0.00015793,2]
[322933872,1713529856007,-549.44629686,0.00015793,2]
[322933873,1713529856033,-3253.12315319,0.00015793,2]
[322933874,1713529856146,-15.46054995,0.00015793,2]
[322933875,1713529856162,-500.0,0.00015793,2]
[322933876,1713529856178,-40.1507537,0.00015793,2]
[322933877,1713529856199,-862.3800003,0.00015793,2]
[322933878,1713529856217,-1729.849246,0.00015793,2]
[322933879,1713529856232,-1523.63,0.00015793,2]
[322933880,1713529856246,-500.0,0.00015793,2]
[322933881,1713529856261,-500.0,0.00015793,2]
[322933882,1713529856277,-2283.24595402,0.00015793,2]
[322933883,1713529856315,-720.53868749,0.00015793,2]
[322933884,1713529856337,-136.48535849,0.00015793,2]
[322933885,1713529856351,-1258.48,0.00015793,2]
[322933886,1713529856364,-500.0,0.00015793,2]
[322933887,1713529856377,-500.0,0.00015793,2]
[322933888,1713529856391,-452.62733147,0.00015793,2]
[322933889,1713529856494,-286.52514422,0.00015521,2]
[322933890,1713529858702,-4329.93192631,0.00015516,2]
[322933891,1713529858713,-603.58,0.00015517,2]
[322933892,1713529858723,-500.0,0.00015517,2]
[322933893,1713529858733,-500.0,0.00015517,2]
[322933894,1713529858743,-500.0,0.00015519,2]
[322933895,1713529858754,-213.47485578,0.00015521,2]
[322933896,1713529858764,-1215.62,0.00015521,2]
[322933897,1713529858774,-603.58,0.00015791,2]
[322933898,1713529858784,-500.0,0.00015791,2]
[322933899,1713529858794,-500.0,0.00015791,2]
[322933900,1713529858805,-47.37266853,0.00015793,2]
[322933901,1713529858815,-1620.21,0.00015793,2]
[322933902,1713529858825,-500.0,0.00015793,2]
[322933903,1713529858836,-500.0,0.00015793,2]
[322933904,1713529858846,-500.0,0.00015793,2]
[322933905,1713529858856,-500.0,0.00015793,2]
[322933906,1713529858866,-5955.48,0.00015793,2]
[322933907,1713529858876,-777.93,0.00015793,2]
[322933908,1713529858886,-500.0,0.00015793,2]
[322933909,1713529858895,-500.0,0.00015793,2]
[322933910,1713529858905,-2274.95,0.00015793,2]
[322933911,1713529858915,-500.0,0.00015793,2]
[322933912,1713529858926,-3638.7,0.00015793,2]
[322933913,1713529858936,-500.0,0.00015793,2]
[322933914,1713529858952,-500.0,0.00015793,2]
[322933915,1713529858962,-500.0,0.00015793,2]
[322933916,1713529858972,-5014.08,0.00015793,2]
[322933917,1713529858982,-327.46501897,0.00015793,2]
[322933918,1713529858992,-500.0,0.00015793,2]
[322933919,1713529859002,-7019.88,0.00015793,2]
[322933920,1713529859012,-500.0,0.00015793,2]
[322933921,1713529859021,-3118.5,0.00015793,2]
[322933922,1713529859030,-500.0,0.00015793,2]
[322933923,1713529859040,-500.0,0.00015793,2]
[322933924,1713529859051,-500.0,0.00015793,2]
[322933925,1713529859061,-1015.95,0.00015793,2]
[322933926,1713529859071,-500.0,0.00015793,2]
[322933927,1713529859081,-500.0,0.00015793,2]
[322933928,1713529859091,-500.0,0.00015793,2]
[322933929,1713529859104,-500.0,0.00015793,2]
[322933930,1713529859114,-500.0,0.00015793,2]
[322933931,1713529859126,-15134.1,0.00015793,2]
[322933932,1713529859137,-2094.36,0.00015793,2]
[322933933,1713529859147,-500.0,0.00015793,2]
[322933934,1713529859158,-498.81363837,0.00015793,2]
[322933935,1713529859168,-500.0,0.00015793,2]
[322933936,1713529859178,-7892.31,0.00015793,2]
[322933937,1713529859190,-500.0,0.00015793,2]
[322933938,1713529859203,-590.36,0.00015793,2]
[322933939,1713529859212,-500.0,0.00015793,2]
[322933940,1713529859223,-4018.13,0.00015793,2]
[322933941,1713529859233,-13368.18,0.00015793,2]
[322933942,1713529859244,-500.0,0.00015793,2]
[322933943,1713529859254,-3691.07696544,0.00015793,2]
[322933944,1713529859273,-1008.72303456,0.00015793,2]
[322933945,1713529859284,-500.0,0.00015793,2]
[322933946,1713529859295,-176.6193428,0.00015793,2]
[322933947,1713529859308,-450.33206726,0.00015793,2]
[322933948,1713529859318,-7228.92,0.00015793,2]
[322933949,1713529859329,-474.77926415,0.00015793,2]
[322933950,1713529859343,-25.22073585,0.00015793,2]
[322933951,1713529859353,-500.0,0.00015793,2]
[322933952,1713529859363,-2013.51,0.00015793,2]
[322933953,1713529859374,-500.0,0.00015793,2]
[322933954,1713529859384,-2034.26473969,0.00015793,2]
[322933955,1713529859396,-347.60257168,0.00015793,2]
[322933956,1713529859433,-5309.13082506,0.00015519,2]
[322933957,1713529859468,-2088.18733479,0.00015519,2]
[322933958,1713529859482,-884.28184015,0.00015519,2]
[322933959,1713529859491,-112819.80268863,0.00015793,2]
[322933960,1713529859502,-2164.61,0.00015793,2]
[322933961,1713529859512,-624.82,0.00015793,2]
[322933962,1713529859524,-500.0,0.00015793,2]
[322933963,1713529859536,-5239.0,0.00015793,2]
[322933964,1713529859547,-500.0,0.00015793,2]
[322933965,1713529859557,-687.69,0.00015793,2]
[322933966,1713529859566,-500.0,0.00015793,2]
[322933967,1713529859576,-500.0,0.00015793,2]
[322933968,1713529859587,-1609.3,0.00015793,2]
[322933969,1713529859597,-500.0,0.00015793,2]
[322933970,1713529859607,-4148.69452742,0.00015793,2]
[322933971,1713529859620,-743.74511592,0.00015793,2]
[322933972,1713529859635,-1546.92035666,0.00015793,2]
[322933973,1713529859645,-500.0,0.00015793,2]
[322933974,1713529859654,-1896.47790706,0.00015793,2]
[322933975,1713529859776,-5106.37209294,0.00015793,2]
[322933976,1713529859789,-500.0,0.00015793,2]
[322933977,1713529859800,-500.0,0.00015793,2]
[322933978,1713529859811,-500.0,0.00015793,2]
[322933979,1713529859821,-5947.28,0.00015793,2]
[322933980,1713529859832,-500.0,0.00015793,2]
[322933981,1713529859843,-1303.12,0.00015793,2]
[322933982,1713529859853,-2495.3,0.00015793,2]
[322933983,1713529859863,-1886.72,0.00015793,2]
[322933984,1713529859874,-500.0,0.00015793,2]
[322933985,1713529859885,-1771.64,0.00015793,2]
[322933986,1713529859895,-500.0,0.00015793,2]
[322933987,1713529859907,-10169.42,0.00015793,2]
[322933988,1713529859917,-500.0,0.00015793,2]
[322933989,1713529859928,-2494.37,0.00015793,2]
[322933990,1713529859938,-500.0,0.00015793,2]
[322933991,1713529859950,-500.0,0.00015793,2]
[322933992,1713529859962,-6000.77,0.00015793,2]
[322933993,1713529859973,-8051.88,0.00015793,2]
[322933994,1713529859984,-500.0,0.00015793,2]
[322933995,1713529859995,-526.44,0.00015793,2]
[322933996,1713529860008,-4816.54,0.00015793,2]
[322933997,1713529860018,-15472.26,0.00015793,2]
[322933998,1713529860029,-500.0,0.00015793,2]
[322933999,1713529860041,-2941.07,0.00015793,2]
[322934000,1713529860052,-20615.3,0.00015793,2]
[322934001,1713529860062,-500.0,0.00015793,2]
[322934002,1713529860073,-6036.36,0.00015793,2]
[322934003,1713529860083,-500.0,0.00015793,2]
[322934004,1713529860094,-500.0,0.00015793,2]
[322934005,1713529860104,-5884.35,0.00015793,2]
[322934006,1713529860115,-500.0,0.00015793,2]
[322934007,1713529860125,-5175.99,0.00015793,2]
[322934008,1713529860136,-500.0,0.00015793,2]
[322934009,1713529860147,-3130.84,0.00015793,2]
[322934010,1713529860157,-500.0,0.00015793,2]
[322934011,1713529860168,-1744.99,0.00015793,2]
[322934012,1713529860178,-6696.07,0.00015793,2]
[322934013,1713529860189,-500.0,0.00015793,2]
[322934014,1713529860202,-1445.24,0.00015793,2]
[322934015,1713529860213,-2626.68,0.00015793,2]
[322934016,1713529860224,-500.0,0.00015793,2]
[322934017,1713529860234,-4174.75,0.00015793,2]
[322934018,1713529860243,-4702.81,0.00015793,2]
[322934019,1713529860254,-5026.41,0.00015793,2]
[322934020,1713529860263,-500.0,0.00015793,2]
[322934021,1713529860273,-3629.82,0.00015793,2]
[322934022,1713529860283,-500.0,0.00015793,2]
[322934023,1713529860293,-3030.43,0.00015793,2]
[322934024,1713529860303,-846.82,0.00015793,2]
[322934025,1713529860313,-9534.23,0.00015793,2]
[322934026,1713529860323,-2430.36,0.00015793,2]
[322934027,1713529860333,-7524.72,0.00015793,2]
[322934028,1713529860343,-500.0,0.00015793,2]
[322934029,1713529860353,-758.82,0.00015793,2]
[322934030,1713529860362,-9151.91,0.00015793,2]
[322934031,1713529860372,-500.0,0.00015793,2]
[322934032,1713529860381,-11780.19663896,0.00015793,2]
[322934033,1713529890644,323.74545186,0.00015499,2]
[322934034,1713529891116,155.0,0.00015499,2]
[322934035,1713529892692,2192.65866292,0.00015499,2]
[322934036,1713529896870,600.0,0.0001478,2]
[322934037,1713529898744,805.4113,0.00015418,2]
[322934038,1713529907697,186.82,0.00015499,2]
[322934039,1713529915688,1400.0,0.0001478,2]
[322934040,1713529918570,33669.7684,0.00015418,2]
[322934049,1713529963624,155.0,0.00015499,2]
[322934050,1713529972773,2500.0,0.00015418,2]
[322934051,1713529977680,1782.84985694,0.00015499,2]
[322934052,1713530075922,1000.0,0.00014692,2]
[322934053,1713530077285,288.51,0.00014692,2]
[322934054,1713530093934,327.52,0.00014692,2]
[322934055,1713530094316,163.0040181,0.000282,120]
[322934056,1713530217464,150.0,0.00015497,2]
[322934057,1713530217511,150.0,0.00015466,2]
[322934058,1713530217950,150.0,0.00015499,2]
[322934059,1713530306143,2030.65,0.00015068,2]
[322934060,1713530306325,2030.65,0.00015342,2]
[322934064,1713530402463,176.16,0.00012757,2]
[322934065,1713530402618,176.16,0.00015021,2]
[322934066,1713530414087,131315.34598113,0.00015,2]
[322934067,1713530426375,99915.07609576,0.000155,2]
[322934068,1713530463230,10000.0,0.00015419,2]
[322934069,1713530486727,1250.0,0.00015,2]
[322934070,1713530538204,188.44336217,0.00015416,2]
[322934071,1713530544393,188.4433621,0.00015499,2]
[322934072,1713530579127,18630.20014286,0.00015499,2]
[322934073,1713530590110,218.35,0.0001463,2]
[322934074,1713530593686,9559.72506138,0.00015417,2]
[322934075,1713530615377,20000.0,0.000155,2]
[322934076,1713530634502,20000.0,0.000155,2]
[322934077,1713530661903,10000.0,0.00015417,2]
[322934078,1713530666828,20000.0,0.000155,2]
[322934079,1713530673185,200.0,0.00014622,2]
[322934080,1713530681839,-508.87861084,0.000155,4]
[322934081,1713530681865,-4329.93192631,0.00015505,2]
[322934082,1713530682237,-8986.52052507,0.00015506,2]
[322934083,1713530682266,-150.0,0.00015506,2]
[322934084,1713530682296,-150.82,0.00015507,2]
[322934085,1713530682325,-150.82,0.00015508,2]
[322934086,1713530682354,-554.43,0.0001551,2]
[322934087,1713530682380,-554.43,0.0001551,2]
[322934088,1713530682404,-500.0,0.0001551,2]
[322934089,1713530682429,-446.07604215,0.00015515,2]
[322934090,1713530682455,-3109.28,0.00015515,2]
[322934091,1713530682481,-6771.44,0.00015515,2]
[322934092,1713530682505,-1875.92,0.00015515,2]
[322934093,1713530682531,-3556.97,0.00015515,2]
[322934094,1713530682560,-3754.4,0.00015515,2]
[322934095,1713530682585,-192.56707976,0.00015516,2]
[322934096,1713530682611,-210.03008713,0.00015516,2]
[322934097,1713530682638,-157.40461354,0.00015516,2]
[322934098,1713530682665,-929.94,0.00015516,2]
[322934099,1713530682692,-7360.03,0.00015516,2]
[322934100,1713530682718,-2850.0,0.00015516,2]
[322934101,1713530682744,-1951.2,0.00015516,2]
[322934102,1713530682769,-1925.81,0.00015516,2]
[322934103,1713530682796,-1480.55,0.00015516,2]
[322934104,1713530682825,-486.19357443,0.00015516,2]
[322934105,1713530682854,-1485.42,0.00015516,2]
[322934106,1713530682882,-14058.62,0.00015516,2]
[322934107,1713530682909,-2924.27,0.00015516,2]
[322934108,1713530682933,-500.0,0.00015516,2]
[322934109,1713530682961,-632.01,0.00015516,2]
[322934110,1713530682987,-500.0,0.00015516,2]
[322934111,1713530683012,-4311.77,0.00015516,2]
[322934112,1713530683038,-500.0,0.00015516,2]
[322934113,1713530683067,-944.26754077,0.00015516,2]
[322934114,1713530694076,1813.05715191,0.000155,2]
[322934115,1713530700313,179.53180576,0.000155,2]
[322934116,1713530712520,18060.94191045,0.000155,3]
[322934117,1713530722088,13579.62129132,0.00015498,4]
[322934124,1713530817384,150.0,0.00015472,2]
[322934125,1713530863005,10000.0,0.00015417,2]
[322934128,1713530916088,168.55,0.00012744,2]
[322934129,1713530916700,168.55,0.00015008,2]
[322934136,1713531032182,-150.83,0.00015506,2]
[322934137,1713531032192,-1780.0018805,0.00015513,2]
[322934138,1713531032201,-1000.0,0.00015514,2]
[322934139,1713531032211,-5651.56774111,0.00015514,2]
[322934140,1713531032222,-13968.19612187,0.00015514,2]
[322934141,1713531032231,-2731.25,0.00015514,2]
[322934142,1713531032241,-891.19,0.00015514,2]
[322934143,1713531032250,-1869.9,0.00015514,2]
[322934144,1713531032259,-2802.43,0.00015514,2]
[322934145,1713531032268,-500.0,0.00015514,2]
[322934146,1713531032277,-1403.5,0.00015514,2]
[322934147,1713531032286,-2367.5467799,0.00015515,2]
[322934148,1713531032296,-1282.54,0.00015515,2]
[322934149,1713531032305,-500.0,0.00015515,2]
[322934150,1713531032314,-500.0,0.00015515,2]
[322934151,1713531032323,-166.44709823,0.00015515,2]
[322934152,1713531032334,-1072.22290177,0.00015515,2]
[322934153,1713531032343,-519.94,0.00015515,2]
[322934154,1713531032353,-2778.62,0.00015515,2]
[322934155,1713531032362,-1230.18957493,0.00015515,2]
[322934156,1713531032469,-1423.52,0.00015514,2]
[322934157,1713531032479,-1035.57042507,0.00015515,2]
[322934158,1713531032488,-899.91527713,0.00015515,2]
[322934159,1713531032501,-390.47472287,0.00015515,2]
[322934160,1713531032510,-17.88527723,0.00015515,2]
[322934162,1713531032546,-535.40472277,0.00015515,2]
[322934164,1713531032555,-61.16430613,0.00015515,2]
[322934166,1713531032567,-3072.62569387,0.00015515,2]
[322934168,1713531032576,-1165.85,0.00015515,2]
[322934170,1713531032585,-1064.13,0.00015515,2]
[322934172,1713531032595,-500.0,0.00015515,2]
[322934174,1713531032604,-500.0,0.00015515,2]
[322934176,1713531032613,-500.0,0.00015515,2]
[322934178,1713531032622,-789.09,0.00015515,2]
[322934181,1713531032634,-2476.95,0.00015515,2]
[322934182,1713531032643,-500.0,0.00015515,2]
[322934184,1713531032652,-500.0,0.00015515,2]
[322934186,1713531032662,-673.51,0.00015515,2]
[322934189,1713531032671,-1300.12,0.00015515,2]
[322934191,1713531032680,-1782.42,0.00015515,2]
[322934192,1713531032689,-2295.44,0.00015515,2]
[322934194,1713531032698,-664.75,0.00015515,2]
[322934204,1713531032708,-500.0,0.00015515,2]
[322934205,1713531033052,-500.0,0.00015515,2]
[322934206,1713531033062,-1183.19,0.00015515,2]
[322934207,1713531033071,-500.0,0.00015515,2]
[322934208,1713531033080,-2090.46,0.00015515,2]
[322934209,1713531033089,-500.0,0.00015515,2]
[322934210,1713531033099,-1570.32,0.00015515,2]
[322934211,1713531033108,-500.0,0.00015515,2]
[322934212,1713531033118,-735.85,0.00015515,2]
[322934213,1713531033127,-500.0,0.00015515,2]
[322934214,1713531033139,-562.34,0.00015515,2]
[322934215,1713531033148,-556.31,0.00015515,2]
[322934216,1713531033157,-406.86975657,0.00015515,2]
[322934217,1713531033166,-500.0,0.00015515,2]
[322934218,1713531033176,-1058.48,0.00015515,2]
[322934219,1713531033186,-2181.31,0.00015515,2]
[322934220,1713531033195,-846.14,0.00015515,2]
[322934221,1713531033205,-500.0,0.00015515,2]
[322934222,1713531033215,-1135.91,0.00015515,2]
[322934223,1713531033226,-9690.58,0.00015515,2]
[322934224,1713531033235,-1219.68,0.00015515,2]
[322934225,1713531033245,-1855.73,0.00015515,2]
[322934226,1713531033255,-500.0,0.00015515,2]
[322934227,1713531033265,-910.58,0.00015515,2]
[322934228,1713531033275,-2559.94,0.00015515,2]
[322934229,1713531033285,-8023.48,0.00015515,2]
[322934230,1713531033294,-1683.2,0.00015515,2]
[322934231,1713531033304,-2374.82,0.00015515,2]
[322934232,1713531033314,-793.79,0.00015515,2]
[322934233,1713531033323,-654.5,0.00015515,2]
[322934234,1713531033333,-585.42,0.00015515,2]
[322934235,1713531033342,-42767.68,0.00015515,2]
[322934236,1713531033353,-1182.0,0.00015515,2]
[322934237,1713531033363,-5116.49,0.00015515,2]
[322934238,1713531033372,-2240.11,0.00015515,2]
[322934239,1713531033383,-500.0,0.00015515,2]
[322934240,1713531033392,-5721.54,0.00015515,2]
[322934241,1713531033402,-933.43,0.00015515,2]
[322934242,1713531033411,-500.0,0.00015515,2]
[322934243,1713531033421,-500.0,0.00015515,2]
[322934244,1713531033431,-2808.64,0.00015515,2]
[322934245,1713531033441,-1471.69,0.00015515,2]
[322934246,1713531033451,-518.81,0.00015515,2]
[322934247,1713531033461,-1150.55,0.00015515,2]
[322934248,1713531033471,-786.5,0.00015515,2]
[322934249,1713531033480,-1873.09,0.00015515,2]
[322934250,1713531033489,-10955.89,0.00015515,2]
[322934251,1713531033498,-1855.42,0.00015515,2]
[322934252,1713531033508,-1399.5,0.00015515,2]
[322934253,1713531033517,-7053.36,0.00015515,2]
[322934254,1713531033527,-500.0,0.00015515,2]
[322934255,1713531033537,-502.21753185,0.00015515,2]
[322934256,1713531033547,-3597.96,0.00015515,2]
[322934257,1713531033556,-6133.19489274,0.00015515,2]
[322934258,1713531033569,-1240.78981057,0.00015515,2]
[322934259,1713531033588,-1710.02529669,0.00015515,2]
[322934260,1713531033597,-500.0,0.00015515,2]
[322934261,1713531033607,-557.25,0.00015515,2]
[322934262,1713531033616,-500.0,0.00015515,2]
[322934263,1713531033625,-1845.57,0.00015515,2]
[322934264,1713531033637,-1360.84,0.00015515,2]
[322934265,1713531033647,-58.52088331,0.00015515,2]
[322934266,1713531033686,-626.85191041,0.00015515,2]
[322934267,1713531033711,-12787.47720628,0.00015515,2]
[322934268,1713531033721,-832.5,0.00015515,2]
[322934269,1713531033732,-500.0,0.00015515,2]
[322934270,1713531033742,-2979.72,0.00015515,2]
[322934271,1713531033752,-1736.79381492,0.00015515,2]
[322934275,1713531038348,-1909.52618508,0.00015515,2]
[322934276,1713531038357,-602.03,0.00015515,2]
[322934277,1713531038367,-958.85,0.00015515,2]
[322934278,1713531038376,-839.28,0.00015515,2]
[322934279,1713531038387,-972.63,0.00015515,2]
[322934280,1713531038396,-3497.8022724,0.00015515,2]
[322934281,1713531038407,-615.46999998,0.00015515,2]
[322934310,1713531038717,-23.07491189,0.00015515,2]
[322934332,1713531038907,-373.57,0.00015515,2]
[322934336,1713531038938,-2542.00281573,0.00015515,2]
[322934338,1713531038947,-847.96249343,0.00015515,2]
[322934340,1713531038959,-818.49731349,0.00015515,2]
[322934639,1713531042415,-369.10426275,0.00015514,2]
[322934640,1713531042447,-1280.53573725,0.00015514,2]
[322934641,1713531042457,-4132.11,0.00015514,2]
[322934642,1713531042466,-1154.97019308,0.00015515,2]
[322934643,1713531042476,-500.0,0.00015515,2]
[322934644,1713531042485,-1241.25315047,0.00015515,2]
[322934645,1713531042574,-2559.94825,0.00015515,2]
[322934646,1713531042586,-376.955934,0.00015515,2]
[322934657,1713531043370,-2609.40266553,0.00015515,2]
[322934658,1713531043379,-224.5864448,0.00015515,2]
[322934659,1713531043471,-275.4135552,0.00015515,2]
[322934660,1713531043480,-1008.56,0.00015515,2]
[322934661,1713531043489,-1969.81,0.00015515,2]
[322934662,1713531043498,-4566.13,0.00015515,2]
[322934663,1713531043507,-5553.8868963,0.00015515,2]
[322934664,1713531043526,-6680.0431037,0.00015515,2]
[322934665,1713531043536,-500.0,0.00015515,2]
[322934666,1713531043546,-1037.44,0.00015515,2]
[322934667,1713531043555,-2279.33,0.00015515,2]
[322934668,1713531043564,-500.0,0.00015515,2]
[322934669,1713531043573,-1723.92,0.00015515,2]
[322934670,1713531043583,-9551.9,0.00015515,2]
[322934671,1713531043592,-961.92,0.00015515,2]
[322934672,1713531043602,-500.0,0.00015515,2]
[322934673,1713531043611,-1612.81,0.00015515,2]
[322934674,1713531043620,-1281.07,0.00015515,2]
[322934675,1713531043630,-2162.96,0.00015515,2]
[322934676,1713531043639,-10602.1069627,0.00015515,2]
[322934677,1713531043651,-654.70405,0.00015515,2]
[322934726,1713531046664,-6037.08936343,0.00015515,2]
[322934727,1713531046676,-736.29962387,0.00015515,2]
[322934728,1713531046686,-400.25406105,0.00015515,2]
[322934729,1713531046774,-99.74593895,0.00015515,2]
[322934730,1713531046783,-711.60238213,0.00015515,2]
[322934731,1713531046858,-444.20761787,0.00015515,2]
[322934732,1713531046867,-1949.51,0.00015515,2]
[322934733,1713531046876,-500.0,0.00015515,2]
[322934734,1713531046884,-802.32120964,0.00015515,2]
[322934735,1713531046949,-6650.77657016,0.00015515,2]
[322934736,1713531046961,-10261.2222202,0.00015515,2]
[322934737,1713531046970,-651.46,0.00015515,2]
[322934738,1713531046980,-676.97,0.00015515,2]
[322934739,1713531046992,-808.64,0.00015515,2]
[322934740,1713531047001,-8360.99463727,0.00015515,2]
[322934741,1713531047012,-3722.86536273,0.00015515,2]
[322934742,1713531047021,-500.0,0.00015515,2]
[322934743,1713531047031,-863.42,0.00015515,2]
[322934744,1713531047040,-4226.98,0.00015515,2]
[322934745,1713531047049,-500.0,0.00015515,2]
[322934746,1713531047059,-18744.92,0.00015515,2]
[322934747,1713531047069,-5462.27,0.00015515,2]
[322934748,1713531047079,-1057.48,0.00015515,2]
[322934749,1713531047087,-3248.48882508,0.00015515,2]
[322934750,1713531047099,-640.7472672,0.00015515,2]
[322934751,1713531047111,-275.919,0.00015515,2]
[322934752,1713531047130,-526.68490772,0.00015515,2]
[322934753,1713531047139,-540.16,0.00015515,2]
[322934754,1713531047150,-221.54402969,0.00015515,2]
[322934755,1713531052029,877.0,0.00014686,2]
[322934756,1713531053188,21114.35010152,0.00015008,2]
[322934757,1713531067852,10000.0,0.00015417,2]
[322934758,1713531077088,157.45866333,0.00015414,2]
[322934759,1713531078658,434.5472,0.00015415,2]
[322934760,1713531081769,4579.07236194,0.00015499,2]
[322934761,1713531109510,1732.3989,0.00015415,2]
[322934762,1713531139110,840.0,0.00014668,2]
[322934763,1713531139620,63788.2859,0.00015415,2]
[322934764,1713531157982,500.0,0.00015415,2]
[322934765,1713531187377,23522.57584446,0.000138,2]
[322934766,1713531192537,1861.43,0.00015068,2]
[322934767,1713531192669,1861.43,0.00015342,2]
[322934768,1713531202763,618.93308279,0.0001305,2]
[322934769,1713531225475,166.21,0.0001611,15]
[322934770,1713531263347,10000.0,0.00015417,2]
[322934772,1713531322557,189.69931,0.00015342,2]
[322934773,1713531334181,5775.73,0.00015415,2]
[322934774,1713531352481,18973.61974827,0.00015,2]
[322934775,1713531381913,158.37,0.00014766,2]
[322934776,1713531414844,1570.9652,0.0001542,2]
[322934777,1713531415403,1570.9652,0.0001546,2]
[322934778,1713531415894,1570.9652,0.000155,2]
[322934779,1713531416010,1570.9652,0.0001549,2]
[322934780,1713531419368,329.49433,0.000155,2]
[322934781,1713531419957,329.49434,0.000155,2]
[322934782,1713531457294,10000.0,0.00015416,2]
[322934783,1713531510566,692.4027,0.00015414,2]
[322934784,1713531518822,584.33,0.00014657,2]
[322934785,1713531529702,20466.2094,0.00015414,2]
[322934786,1713531588963,151.69,0.00012744,2]
[322934787,1713531589410,151.69,0.00015008,2]
[322934788,1713531624719,170.729379,0.00015342,2]
[322934789,1713531646639,328.0,0.00014625,2]
[322934790,1713531679320,10000.0,0.00015415,2]
[322934791,1713531705358,-150.83,0.00015504,2]
[322934792,1713531705382,-1877.0,0.00015507,2]
[322934793,1713531705405,-150.0,0.00015511,2]
[322934794,1713531705432,-300.0,0.00015511,2]
[322934795,1713531705455,-8030.43075655,0.00015512,2]
[322934796,1713531705477,-155.0,0.00015513,2]
[322934797,1713531705501,-17317.73924345,0.00015513,2]
[322934798,1713531721913,1570.9652,0.0001537,2]
[322934799,1713531722087,41032.31423022,0.000155,4]
[322934800,1713531722114,200000.0,0.000155,4]
[322934801,1713531727707,-280.54105723,0.0001543,2]
[322934802,1713531728464,-222.52540556,0.0001539,2]
[322934803,1713531729505,-106.96893444,0.0001539,2]
[322934804,1713531748143,166.21,0.0001611,15]
[322934805,1713531753328,150.0,0.00013948,2]
[322934806,1713531753349,5.87430494,0.00013948,2]
[322934807,1713531806257,-169.21327139,0.00015199,2]
[322934808,1713531806386,-4615.90242367,0.00015199,2]
[322934809,1713531806410,-561.04471122,0.00015416,2]
[322934810,1713531806434,-177.41903539,0.00015416,2]
[322934811,1713531806458,-33952.63382972,0.000155,4]
[322934812,1713531817327,-154.17258646,0.000155,4]
[322934813,1713531818617,-150.0,0.000155,4]
[322934814,1713531819410,-150.0,0.000155,4]
[322934815,1713531819990,-150.0,0.000155,4]